lending/lending_fUSD_20250131
["ID","MTS","AMOUNT","RATE_DAILY","PERIOD"]
[351103912,1738337459557,-500.0,0.00016986,2]
[351103913,1738337459569,-1486.33,0.00016986,2]
[351103914,1738337459580,-504.99,0.00016986,2]
[351103915,1738337459593,-1819.15,0.00016986,2]
[351103916,1738337459605,-500.0,0.00016986,2]
[351103917,1738337459615,-541.91,0.00016986,2]
[351103918,1738337459627,-752.59,0.00016986,2]
[351103919,1738337459637,-500.0,0.00016986,2]
[351103920,1738337459647,-571.42,0.00016986,2]
[351103921,1738337459657,-592.92,0.00016986,2]
[351103922,1738337459668,-1384.93,0.00016986,2]
[351103923,1738337459680,-1273.02,0.00016986,2]
[351103924,1738337459692,-1136.27,0.00016986,2]
[351103925,1738337459703,-596.46,0.00016986,2]
[351103926,1738337459715,-786.52,0.00016986,2]
[351103927,1738337459727,-3091.15,0.00016986,2]
[351103928,1738337459738,-962.97,0.00016986,2]
[351103929,1738337459751,-1170.72,0.00016986,2]
[351103930,1738337459764,-1591.77,0.00016986,2]
[351103931,1738337459776,-650.06,0.00016986,2]
[351103932,1738337459787,-2348.41,0.00016986,2]
[351103933,1738337459798,-562.34,0.00016986,2]
[351103934,1738337459813,-500.0,0.00016986,2]
[351103935,1738337459824,-2042.14,0.00016986,2]
[351103936,1738337459835,-500.0,0.00016986,2]
[351103937,1738337459847,-861.57,0.00016986,2]
[351103938,1738337459859,-500.0,0.00016986,2]
[351103939,1738337459870,-2815.31,0.00016986,2]
[351103940,1738337459881,-1470.62,0.00016986,2]
[351103941,1738337459893,-500.0,0.00016986,2]
[351103942,1738337459907,-602.1,0.00016986,2]
[351103943,1738337459933,-1618.17,0.00016986,2]
[351103944,1738337459957,-1129.3,0.00016986,2]
[351103945,1738337459983,-807.04,0.00016986,2]
[351103946,1738337460009,-512.58,0.00016986,2]
[351103947,1738337460038,-1736.2,0.00016986,2]
[351103948,1738337460075,-500.0,0.00016986,2]
[351103949,1738337460114,-743.89,0.00016986,2]
[351103950,1738337460150,-500.0,0.00016986,2]
[351103951,1738337460184,-600.71,0.00016986,2]
[351103952,1738337460199,-500.0,0.00016986,2]
[351103953,1738337460209,-1139.59,0.00016986,2]
[351103954,1738337460223,-1335.88,0.00016986,2]
[351103955,1738337460237,-500.0,0.00016986,2]
[351103956,1738337460249,-1619.6,0.00016986,2]
[351103957,1738337460259,-1127.7,0.00016986,2]
[351103958,1738337460269,-928.49,0.00016986,2]
[351103959,1738337460279,-500.0,0.00016986,2]
[351103960,1738337460290,-1587.1,0.00016986,2]
[351103961,1738337460301,-500.0,0.00016986,2]
[351103962,1738337460313,-500.0,0.00016986,2]
[351103963,1738337460326,-550.58,0.00016986,2]
[351103964,1738337460338,-516.36,0.00016986,2]
[351103965,1738337460348,-890.75,0.00016986,2]
[351103966,1738337460359,-603.34,0.00016986,2]
[351103967,1738337460369,-5474.09,0.00016986,2]
[351103968,1738337460380,-564.44,0.00016986,2]
[351103969,1738337460393,-1030.81,0.00016986,2]
[351103970,1738337460405,-500.0,0.00016986,2]
[351103971,1738337460416,-5474.07,0.00016986,2]
[351103972,1738337460427,-2076.08,0.00016986,2]
[351103973,1738337460438,-1295.61,0.00016986,2]
[351103974,1738337460450,-812.44,0.00016986,2]
[351103975,1738337460461,-500.0,0.00016986,2]
[351103976,1738337460473,-2105.35,0.00016986,2]
[351103977,1738337460484,-1423.19,0.00016986,2]
[351103978,1738337460495,-1138.15,0.00016986,2]
[351103979,1738337460507,-500.0,0.00016986,2]
[351103980,1738337460519,-2846.62,0.00016986,2]
[351103981,1738337460530,-793.62,0.00016986,2]
[351103982,1738337460543,-1504.26,0.00016986,2]
[351103983,1738337460555,-500.0,0.00016986,2]
[351103984,1738337460567,-500.0,0.00016986,2]
[351103985,1738337460578,-1268.09,0.00016986,2]
[351103986,1738337460590,-598.83,0.00016986,2]
[351103987,1738337460601,-1451.75,0.00016986,2]
[351103988,1738337460613,-2285.34,0.00016986,2]
[351103989,1738337460624,-500.0,0.00016986,2]
[351103990,1738337460635,-2654.62,0.00016986,2]
[351103991,1738337460646,-2414.42,0.00016986,2]
[351103992,1738337460657,-3941.33,0.00016986,2]
[351103993,1738337460669,-1020.91,0.00016986,2]
[351103994,1738337460680,-1454.44,0.00016986,2]
[351103995,1738337460692,-506.84,0.00016986,2]
[351103996,1738337460703,-500.0,0.00016986,2]
[351103997,1738337460714,-2268.71,0.00016986,2]
[351103998,1738337460725,-776.94,0.00016986,2]
[351103999,1738337460736,-3588.73,0.00016986,2]
[351104000,1738337460747,-941.97,0.00016986,2]
[351104001,1738337460758,-1929.94,0.00016986,2]
[351104002,1738337460770,-3163.78,0.00016986,2]
[351104003,1738337460781,-973.15,0.00016986,2]
[351104004,1738337460792,-717.94,0.00016986,2]
[351104005,1738337460805,-4082.67,0.00016986,2]
[351104006,1738337460816,-7980.75,0.00016986,2]
[351104007,1738337460828,-873.69,0.00016986,2]
[351104008,1738337460839,-1717.79,0.00016986,2]
[351104009,1738337460849,-632.26,0.00016986,2]
[351104010,1738337460861,-500.0,0.00016986,2]
[351104011,1738337460872,-1575.16,0.00016986,2]
[351104012,1738337460883,-526.65,0.00016986,2]
[351104013,1738337460894,-1884.85,0.00016986,2]
[351104014,1738337460905,-1765.61,0.00016986,2]
[351104015,1738337460916,-1070.07,0.00016986,2]
[351104016,1738337460927,-1299.7,0.00016986,2]
[351104017,1738337460939,-3248.07,0.00016986,2]
[351104018,1738337460951,-870.57,0.00016986,2]
[351104019,1738337460966,-500.0,0.00016986,2]
[351104020,1738337460976,-770.3,0.00016986,2]
[351104021,1738337460987,-2101.8,0.00016986,2]
[351104022,1738337460997,-500.0,0.00016986,2]
[351104023,1738337461008,-3515.16,0.00016986,2]
[351104024,1738337461019,-3050.95,0.00016986,2]
[351104025,1738337461030,-534.24,0.00016986,2]
[351104026,1738337461041,-1063.05,0.00016986,2]
[351104027,1738337461052,-500.0,0.00016986,2]
[351104028,1738337461063,-389.45701952,0.00016986,2]
[351104029,1738337461075,-1232.13,0.00016986,2]
[351104030,1738337461086,-791.83,0.00016986,2]
[351104031,1738337461097,-2862.65,0.00016986,2]
[351104032,1738337461108,-1700.09,0.00016986,2]
[351104033,1738337461119,-4068.77,0.00016986,2]
[351104034,1738337461130,-1579.74,0.00016986,2]
[351104035,1738337461140,-1241.33,0.00016986,2]
[351104036,1738337461152,-638.85,0.00016986,2]
[351104037,1738337461162,-629.72,0.00016986,2]
[351104038,1738337461173,-500.0,0.00016986,2]
[351104039,1738337461183,-1016.29,0.00016986,2]
[351104040,1738337461194,-1248.22,0.00016986,2]
[351104041,1738337461205,-511.74326405,0.00016986,2]
[351104042,1738337461216,-500.0,0.00016986,2]
[351104043,1738337461227,-500.0,0.00016986,2]
[351104044,1738337461238,-1647.94,0.00016986,2]
[351104045,1738337461249,-3049.39,0.00016986,2]
[351104046,1738337461260,-1373.52,0.00016986,2]
[351104047,1738337461271,-899.27,0.00016986,2]
[351104048,1738337461283,-500.0,0.00016986,2]
[351104049,1738337461294,-1751.72,0.00016986,2]
[351104050,1738337461307,-500.0,0.00016986,2]
[351104051,1738337461318,-2136.87,0.00016986,2]
[351104052,1738337461329,-1864.25,0.00016986,2]
[351104053,1738337461339,-517.07,0.00016986,2]
[351104054,1738337461350,-500.0,0.00016999,2]
[351104055,1738337461361,-2911.6427962,0.00016999,2]
[351104056,1738337461371,-6966.7757652,0.00016999,2]
[351104057,1738337461382,-1288.3615089,0.00016999,2]
[351104058,1738337461393,-7442.9567855,0.00016999,2]
[351104059,1738337461403,-326837.26731819,0.00017,2]
[351104060,1738337462121,-500.0,0.00016438,2]
[351104061,1738337462131,-264.09423896,0.00016438,2]
[351104062,1738337462154,-5799.03357472,0.00011099,2]
[351104063,1738337462165,-235.90576104,0.00016438,2]
[351104064,1738337462175,-500.0,0.00016575,2]
[351104065,1738337462186,-869.69,0.00016849,2]
[351104066,1738337462197,-151.0,0.0001688,2]
[351104067,1738337462208,-869.69,0.00016986,2]
[351104068,1738337462219,-60107.33454027,0.00017,2]
[351104069,1738337462246,-5592.99677403,0.00017,2]
[351104070,1738337462260,-845.47999999,0.00017,2]
[351104071,1738337463264,-338.63,0.00016438,2]
[351104072,1738337463277,-692.98,0.00016438,2]
[351104073,1738337463288,-100.4408,0.00016567,2]
[351104074,1738337463329,-1170.5592,0.00016567,2]
[351104075,1738337463339,-1031.61,0.00016575,2]
[351104076,1738337463350,-1031.61,0.00016712,2]
[351104077,1738337463360,-1031.61,0.00016849,2]
[351104078,1738337463370,-1031.61,0.00016986,2]
[351104079,1738337463380,-8851.54993069,0.00017,2]
[351104080,1738337463393,-2633.30485171,0.00017,2]
[351104081,1738337464320,-5799.03357472,0.00011099,2]
[351104082,1738337464347,-689.96,0.00016438,2]
[351104083,1738337464373,-689.96,0.00016575,2]
[351104084,1738337464398,-323.01548152,0.00016712,2]
[351104085,1738337464430,-176.98451848,0.00016712,2]
[351104086,1738337464456,-689.96,0.00016712,2]
[351104087,1738337464483,-88.218253,0.00016849,2]
[351104088,1738337464516,-411.781747,0.00016849,2]
[351104089,1738337464540,-239.25207162,0.00016849,2]
[351104090,1738337464571,-450.70792838,0.00016849,2]
[351104091,1738337464595,-246.25267705,0.00016986,2]
[351104092,1738337464625,-253.74732295,0.00016986,2]
[351104093,1738337464653,-2281.58067705,0.00017,2]
[351104094,1738337464959,-3395.29189991,0.00017,2]
[351104095,1738337464985,-1192.59213715,0.00017,2]
[351104096,1738337465013,-278.09921255,0.00017,2]
[351104101,1738337559590,150.0,0.0001112,5]
[351104129,1738338632291,-178.35,0.00010137,2]
[351104130,1738338632302,-188.97,0.00010137,2]
[351104131,1738338632312,-1000.0,0.00011,4]
[351104132,1738338632322,-254.930664,0.00011042,2]
[351104133,1738338632335,-150.0,0.00011151,2]
[351104134,1738338632345,-550.0,0.00013,2]
[351104135,1738338632354,-150.0,0.00013479,2]
[351104136,1738338632363,-1136.35,0.00013495,2]
[351104137,1738338632375,-265.91,0.00014804,2]
[351104138,1738338632384,-156.03,0.00014811,2]
[351104139,1738338632394,-165.38,0.00014843,2]
[351104140,1738338632405,-517.16,0.00014863,2]
[351104141,1738338632414,-250.0,0.00015135,2]
[351104142,1738338632424,-158.04,0.00015162,2]
[351104143,1738338632433,-163.52659254,0.00015162,2]
[351104144,1738338632470,-531.64340746,0.00015162,2]
[351104145,1738338632479,-1000.0,0.00015237,2]
[351104146,1738338632488,-4195.58459254,0.00015261,2]
[351104152,1738338632782,-5695.5,0.00015261,2]
[351104154,1738338632794,-14008.91540746,0.00015261,2]
[351104155,1738338632803,-231.76,0.00015319,2]
[351104156,1738338632812,-291.6,0.0001546,2]
[351104157,1738338632822,-151.68,0.0001546,2]
[351104158,1738338632831,-992.1,0.0001546,2]
[351104159,1738338632840,-150.0,0.0001546,2]
[351104160,1738338632849,-306.31,0.0001546,2]
[351104161,1738338632858,-151.03,0.0001546,2]
[351104162,1738338632867,-150.0,0.0001546,2]
[351104163,1738338632876,-259.51,0.0001546,2]
[351104164,1738338632885,-150.0,0.0001546,2]
[351104165,1738338632894,-876.66,0.0001546,2]
[351104166,1738338632903,-438.33,0.00015616,2]
[351104167,1738338632912,-381.49,0.00015616,2]
[351104168,1738338632922,-600.0,0.000157,5]
[351104170,1738338632931,-1136.35,0.00015759,2]
[351104172,1738338632940,-1300.0,0.000158,5]
[351104174,1738338632949,-150.0,0.00015899,2]
[351104176,1738338632958,-2000.0,0.000159,5]
[351104178,1738338632967,-2000.0,0.00016,2]
[351104179,1738338632976,-5179.41402892,0.00016,4]
[351104181,1738338632985,-438.33,0.00016078,2]
[351104183,1738338632994,-298.46,0.00016078,2]
[351104185,1738338633003,-338.6046,0.000161,2]
[351104187,1738338633013,-2500.0,0.000161,2]
[351104189,1738338633022,-7796.90842419,0.00016138,2]
[351104191,1738338633032,-186.7880889,0.0001619,2]
[351104193,1738338633041,-10387.75945054,0.000162,15]
[351104195,1738338633053,-6887.09056867,0.000162,15]
[351104202,1738338633110,-21056.02384341,0.000162,15]
[351104204,1738338633121,-423.1999935,0.000162,15]
[351104207,1738338633132,-22606.465145,0.000162,15]
[351104209,1738338633147,-5187.34768872,0.000162,15]
[351104211,1738338633159,-74770.69052881,0.000162,15]
[351104213,1738338633170,-45512.04364686,0.000162,15]
[351104224,1738338638121,-1175.60002381,0.00015138,2]
[351104226,1738338638136,-993.87485064,0.00015138,2]
[351104231,1738338638252,-1799.94722555,0.00015138,2]
[351104232,1738338638262,-2860.07238696,0.000162,15]
[351104233,1738338638274,-8179.2972,0.000162,15]
[351104234,1738338638285,-651.249959,0.000162,15]
[351104235,1738338638332,-4407.36053872,0.000162,15]
[351104236,1738338638344,-30663.0,0.000162,15]
[351104237,1738338638356,-19592.4657676,0.000162,15]
[351104238,1738338638367,-4509.71223315,0.000162,15]
[351104239,1738338638577,-2836.75151938,0.000162,15]
[351104242,1738338638588,-24034.70936058,0.000162,15]
[351104244,1738338638600,-29546.860135,0.000162,15]
[351104246,1738338638611,-9061.49703077,0.000162,15]
[351104271,1738338640254,-963.19752,0.000162,15]
[351104272,1738338640391,-96716.48958051,0.000162,15]
[351104273,1738338640403,-515501.56274607,0.000162,15]
[351104274,1738338640517,-9424.667451,0.000162,15]
[351104275,1738338640528,-418.22100642,0.000162,15]
[351104276,1738338640539,-1017.84759772,0.000162,15]
[351104277,1738338640718,-4760.67410844,0.000162,15]
[351104278,1738338640729,-13088.000002,0.000162,15]
[351104279,1738338640913,-163725.84352891,0.000162,15]
[351104280,1738338640924,-2740.36695903,0.000162,15]
[351104281,1738338640935,-374.271543,0.000162,15]
[351104291,1738338643479,-36335.0,0.000162,15]
[351104292,1738338643491,-6785.7430883,0.000162,15]
[351104293,1738338643502,-462.9963426,0.000162,15]
[351104294,1738338643728,-497.613435,0.000162,15]
[351104295,1738338643739,-457.816,0.000162,15]
[351104296,1738338643751,-46045.53013414,0.000162,15]
[351104297,1738338643762,-525.89046702,0.000162,15]
[351104298,1738338643780,-125490.35414763,0.000162,15]
[351104299,1738338643790,-608.44251436,0.000162,15]
[351104300,1738338643801,-735.915,0.000162,15]
[351104301,1738338643812,-10028.01606187,0.000162,15]
[351104302,1738338643957,-55.3309636,0.000162,15]
[351104303,1738338643968,-3060.0,0.000162,15]
[351104314,1738338646175,-915.83999997,0.000162,15]
[351104315,1738338646186,-1229.1,0.000162,15]
[351104316,1738338646296,-539.80322539,0.000162,15]
[351104317,1738338646307,-6461.2485922,0.000162,15]
[351104318,1738338646319,-300.75301768,0.000162,15]
[351104319,1738338646332,-4802.9997,0.000162,15]
[351104320,1738338646343,-32463.33827047,0.000162,15]
[351104321,1738338646352,-157.9564,0.00016238,2]
[351104322,1738338646361,-467.7628,0.00016238,2]
[351104323,1738338646371,-150.0,0.00016247,2]
[351104324,1738338646380,-150.0,0.00016247,2]
[351104325,1738338646390,-150.0,0.00016247,2]
[351104326,1738338646400,-7796.90842417,0.00016252,2]
[351104327,1738338646410,-560.0,0.00016285,2]
[351104328,1738338646420,-8104.15384536,0.000163,2]
[351104329,1738338646686,-11841.44915464,0.000163,2]
[351104330,1738338646695,-502.0,0.00016301,2]
[351104331,1738338646705,-56276.24,0.00016338,2]
[351104332,1738338646714,-81199.60042519,0.00016338,2]
[351104333,1738338646723,-255.83537837,0.00016338,2]
[351104334,1738338646732,-5000.0,0.00016338,2]
[351104335,1738338646741,-7796.90842417,0.00016365,2]
[351104336,1738338646750,-50073.65821802,0.000164,2]
[351104337,1738338646759,-500.0,0.00016438,2]
[351104338,1738338646768,-500.0,0.00016438,2]
[351104339,1738338646777,-500.0,0.00016438,2]
[351104340,1738338646786,-500.0,0.00016438,2]
[351104341,1738338646797,-500.0,0.00016438,2]
[351104342,1738338646806,-506.54302831,0.00016438,2]
[351104343,1738338646816,-500.0,0.00016438,2]
[351104344,1738338646825,-500.0,0.00016438,2]
[351104345,1738338646834,-500.0,0.00016438,2]
[351104346,1738338646844,-502.88005493,0.00016438,2]
[351104347,1738338646853,-522.10932581,0.00016438,2]
[351104348,1738338646862,-500.0,0.00016438,2]
[351104349,1738338646872,-500.0,0.00016438,2]
[351104350,1738338646881,-500.0,0.00016438,2]
[351104351,1738338646890,-500.0,0.00016438,2]
[351104352,1738338646901,-500.0,0.00016438,2]
[351104353,1738338646910,-500.0,0.00016438,2]
[351104354,1738338646920,-182.28,0.00016438,2]
[351104355,1738338646930,-500.0,0.00016438,2]
[351104356,1738338646939,-500.0,0.00016438,2]
[351104357,1738338646948,-500.0,0.00016438,2]
[351104358,1738338646958,-500.0,0.00016438,7]
[351104359,1738338646967,-500.0,0.00016438,2]
[351104360,1738338646976,-500.0,0.00016438,2]
[351104361,1738338646985,-500.0,0.00016438,2]
[351104362,1738338646994,-500.0,0.00016438,2]
[351104363,1738338647003,-500.0,0.00016438,2]
[351104364,1738338647013,-500.0,0.00016438,2]
[351104365,1738338647022,-500.0,0.00016438,2]
[351104366,1738338647032,-500.0,0.00016438,2]
[351104367,1738338647041,-558.71,0.00016438,2]
[351104368,1738338647050,-500.0,0.00016438,2]
[351104369,1738338647059,-500.0,0.00016438,2]
[351104370,1738338647068,-500.0,0.00016438,2]
[351104371,1738338647078,-696.43,0.00016438,2]
[351104372,1738338647087,-500.0,0.00016438,2]
[351104373,1738338647096,-500.0,0.00016438,2]
[351104374,1738338647105,-578.22,0.00016438,2]
[351104375,1738338647114,-579.92,0.00016438,2]
[351104376,1738338647123,-500.0,0.00016438,2]
[351104377,1738338647133,-500.0,0.00016438,2]
[351104378,1738338647142,-500.0,0.00016438,2]
[351104379,1738338647154,-930.3,0.00016438,2]
[351104380,1738338647164,-500.0,0.00016438,2]
[351104381,1738338647174,-598.05,0.00016438,2]
[351104382,1738338647184,-500.0,0.00016438,2]
[351104383,1738338647194,-500.0,0.00016438,2]
[351104384,1738338647204,-658.18,0.00016438,2]
[351104385,1738338647213,-500.0,0.00016438,2]
[351104386,1738338647222,-500.0,0.00016438,2]
[351104387,1738338647231,-500.0,0.00016438,2]
[351104388,1738338647240,-500.0,0.00016438,2]
[351104389,1738338647250,-822.54,0.00016438,2]
[351104390,1738338647260,-951.57,0.00016438,2]
[351104391,1738338647270,-500.0,0.00016438,2]
[351104392,1738338647280,-639.82,0.00016438,2]
[351104393,1738338647291,-927.18,0.00016438,2]
[351104394,1738338647301,-500.0,0.00016438,2]
[351104395,1738338647310,-500.0,0.00016438,2]
[351104396,1738338647320,-531.98,0.00016438,2]
[351104397,1738338647331,-500.0,0.00016438,2]
[351104398,1738338647340,-500.0,0.00016438,2]
[351104399,1738338647349,-899.2,0.00016438,2]
[351104400,1738338647359,-500.0,0.00016438,2]
[351104401,1738338647370,-500.0,0.00016438,2]
[351104402,1738338647379,-500.0,0.00016438,2]
[351104403,1738338647389,-500.0,0.00016438,2]
[351104404,1738338647400,-500.0,0.00016438,2]
[351104405,1738338647409,-581.99,0.00016438,2]
[351104406,1738338647420,-500.0,0.00016438,2]
[351104407,1738338647429,-500.0,0.00016438,2]
[351104408,1738338647439,-573.36,0.00016438,2]
[351104409,1738338647448,-562.41,0.00016438,2]
[351104410,1738338647457,-500.0,0.00016438,2]
[351104411,1738338647466,-500.0,0.00016438,2]
[351104412,1738338647475,-591.398539,0.00016438,2]
[351104413,1738338647484,-500.0,0.00016438,2]
[351104414,1738338647493,-500.0,0.00016438,2]
[351104415,1738338647503,-500.0,0.00016438,2]
[351104416,1738338647513,-500.0,0.00016438,2]
[351104417,1738338647523,-500.0,0.00016438,2]
[351104418,1738338647533,-500.0,0.00016438,2]
[351104419,1738338647542,-500.0,0.00016438,2]
[351104420,1738338647552,-656.040175,0.00016438,2]
[351104421,1738338647561,-589.01,0.00016438,2]
[351104422,1738338647571,-709.44,0.00016438,2]
[351104423,1738338647580,-500.0,0.00016438,2]
[351104424,1738338647589,-500.0,0.00016438,2]
[351104425,1738338647599,-500.0,0.00016438,2]
[351104426,1738338647608,-500.0,0.00016438,2]
[351104427,1738338647617,-500.0,0.00016438,2]
[351104428,1738338647626,-500.0,0.00016438,2]
[351104429,1738338647637,-500.0,0.00016438,2]
[351104430,1738338647646,-806.42,0.00016438,2]
[351104431,1738338647656,-500.0,0.00016438,2]
[351104432,1738338647665,-500.0,0.00016438,2]
[351104433,1738338647675,-781.42,0.00016438,2]
[351104434,1738338647685,-974.0,0.00016438,2]
[351104435,1738338647694,-500.0,0.00016438,2]
[351104436,1738338647704,-500.0,0.00016438,2]
[351104437,1738338647713,-500.0,0.00016438,2]
[351104438,1738338647722,-500.0,0.00016438,2]
[351104439,1738338647732,-500.0,0.00016438,2]
[351104440,1738338647742,-500.0,0.00016438,2]
[351104441,1738338647751,-500.0,0.00016438,2]
[351104442,1738338647761,-500.0,0.00016438,2]
[351104443,1738338647771,-500.0,0.00016438,2]
[351104444,1738338647780,-500.0,0.00016438,2]
[351104445,1738338647790,-500.0,0.00016438,2]
[351104446,1738338647799,-500.0,0.00016438,2]
[351104447,1738338647808,-500.0,0.00016438,2]
[351104448,1738338647817,-500.0,0.00016438,2]
[351104449,1738338647827,-641.33,0.00016438,2]
[351104450,1738338647836,-500.0,0.00016438,2]
[351104451,1738338647846,-1125.87,0.00016438,2]
[351104452,1738338647855,-500.0,0.00016438,2]
[351104453,1738338647864,-660.93,0.00016438,2]
[351104454,1738338647874,-500.0,0.00016438,2]
[351104455,1738338647884,-500.0,0.00016438,2]
[351104456,1738338647894,-641.92,0.00016438,2]
[351104457,1738338647903,-500.0,0.00016438,2]
[351104458,1738338647913,-500.0,0.00016438,2]
[351104459,1738338647922,-500.0,0.00016438,2]
[351104460,1738338647932,-622.41,0.00016438,2]
[351104461,1738338647942,-500.0,0.00016438,2]
[351104462,1738338647951,-389.45701952,0.00016438,2]
[351104463,1738338647961,-925.24,0.00016438,2]
[351104464,1738338647970,-511.74326405,0.00016438,2]
[351104465,1738338647980,-500.0,0.00016438,2]
[351104466,1738338647991,-514.18,0.00016438,2]
[351104467,1738338648000,-500.0,0.00016438,2]
[351104468,1738338648010,-729.37,0.00016438,2]
[351104469,1738338648019,-500.0,0.00016438,2]
[351104470,1738338648028,-500.0,0.00016438,2]
[351104471,1738338648038,-1005.43,0.00016438,2]
[351104472,1738338648047,-500.0,0.00016438,2]
[351104473,1738338648057,-591.65,0.00016438,2]
[351104474,1738338648066,-508.73769559,0.00016438,2]
[351104475,1738338648076,-556.0,0.00016438,2]
[351104476,1738338648085,-655.43,0.00016438,2]
[351104477,1738338648095,-500.0,0.00016438,2]
[351104478,1738338648104,-500.0,0.00016438,2]
[351104479,1738338648113,-500.0,0.00016438,2]
[351104480,1738338648123,-500.0,0.00016438,2]
[351104481,1738338648133,-500.0,0.00016438,2]
[351104482,1738338648142,-887.93,0.00016438,2]
[351104483,1738338648154,-547.63,0.00016438,2]
[351104484,1738338648163,-500.0,0.00016438,2]
[351104485,1738338648175,-500.0,0.00016438,2]
[351104486,1738338648185,-741.38,0.00016438,2]
[351104487,1738338648197,-509.70633791,0.00016438,2]
[351104488,1738338648207,-500.0,0.00016438,2]
[351104489,1738338648216,-500.0,0.00016438,2]
[351104490,1738338648225,-851.56,0.00016438,2]
[351104491,1738338648234,-500.0,0.00016438,2]
[351104492,1738338648244,-672.54,0.00016438,2]
[351104493,1738338648253,-500.0,0.00016438,2]
[351104494,1738338648262,-500.0,0.00016438,2]
[351104495,1738338648271,-991.75,0.00016438,2]
[351104496,1738338648281,-500.0,0.00016438,2]
[351104497,1738338648290,-655.8,0.00016438,2]
[351104498,1738338648300,-500.59,0.00016438,2]
[351104499,1738338648309,-500.0,0.00016438,2]
[351104500,1738338648319,-500.0,0.00016438,2]
[351104501,1738338648330,-802.47,0.00016438,2]
[351104502,1738338648340,-500.0,0.00016438,2]
[351104503,1738338648349,-500.0,0.00016438,2]
[351104504,1738338648359,-420.55802313,0.00016438,2]
[351104505,1738338648375,-79.44197687,0.00016438,2]
[351104506,1738338648385,-367.74962978,0.00016438,2]
[351104507,1738338648396,-946.89,0.00016438,2]
[351104508,1738338648406,-696.47,0.00016438,2]
[351104509,1738338648416,-742.29,0.00016438,2]
[351104510,1738338648425,-500.0,0.00016438,2]
[351104511,1738338648435,-500.0,0.00016438,2]
[351104512,1738338648445,-1701.78,0.00016438,2]
[351104513,1738338648454,-500.0,0.00016438,2]
[351104514,1738338648464,-500.0,0.00016438,2]
[351104515,1738338648474,-743.7,0.00016438,2]
[351104516,1738338648484,-500.0,0.00016438,2]
[351104517,1738338648494,-1154.11,0.00016438,2]
[351104518,1738338648503,-500.0,0.00016438,2]
[351104519,1738338648513,-941.08,0.00016438,2]
[351104520,1738338648522,-627.44,0.00016438,2]
[351104521,1738338648531,-500.0,0.00016438,2]
[351104522,1738338648540,-627.16,0.00016438,2]
[351104523,1738338648550,-500.0,0.00016438,2]
[351104524,1738338648559,-500.0,0.00016438,2]
[351104525,1738338648568,-1326.48,0.00016438,2]
[351104526,1738338648578,-733.34,0.00016438,2]
[351104527,1738338648587,-500.0,0.00016438,2]
[351104528,1738338648596,-1957.01,0.00016438,2]
[351104529,1738338648606,-2575.96,0.00016438,2]
[351104530,1738338648615,-500.0,0.00016438,2]
[351104531,1738338648625,-500.0,0.00016438,2]
[351104532,1738338648634,-500.0,0.00016438,2]
[351104533,1738338648644,-1066.67,0.00016438,2]
[351104534,1738338648654,-500.0,0.00016438,2]
[351104535,1738338648663,-661.35,0.00016438,2]